bitfinex/quotes_SOLUSD_20250731
["timestamp","ask_amount","ask_price","bid_price","bid_amount"]
[1753980143679,0.1,179.75,179.74,113.8827604]
[1753980143984,0.1,179.75,179.74,113.32640122]
[1753980144187,0.1,179.75,179.74,103.08999653]
[1753980144416,0.1,179.75,179.74,103.64635571]
[1753980144767,0.67,179.8,179.74,103.64635571]
[1753980145097,0.67,179.8,179.79,9.52640469]
[1753980145300,0.03,179.81,179.79,49.86640469]
[1753980145471,0.03,179.81,179.8,9.52640469]
[1753980146298,0.03,179.81,179.79,40.34]
[1753980146476,0.03,179.81,179.8,9.52640469]
[1753980146670,0.03,179.81,179.73,5.56381356]
[1753980146873,0.69,179.8,179.74,40.32]
[1753980147088,0.69,179.8,179.76,9.52640469]
[1753980147297,0.03,179.81,179.79,9.52640469]
[1753980147478,0.03,179.81,179.79,40.32]
[1753980147795,9.52640469,179.8,179.77,40.34]
[1753980148003,0.69,179.79,179.77,40.34]
[1753980148169,0.03,179.81,179.78,9.52640469]
[1753980148506,0.69,179.8,179.79,40.36]
[1753980148672,0.69,179.8,179.76,9.52640469]
[1753980148875,6.25187516,179.8,179.77,40.36]
[1753980149092,0.69,179.79,179.77,40.36]
[1753980149268,0.69,179.79,179.76,9.52640469]
[1753980149473,0.69,179.78,179.76,49.88640469]
[1753980149869,0.69,179.78,179.77,9.52640469]
[1753980150090,6.28148314,179.81,179.77,9.52640469]
[1753980150406,0.69,179.8,179.79,9.52640469]
[1753980151379,0.03,179.81,179.79,9.52640469]
[1753980151704,0.03,179.81,179.8,50.42257821]
[1753980152072,0.03,179.81,179.8,49.86640469]
[1753980152298,0.03,179.81,179.8,50.57640469]
[1753980152998,0.03,179.81,179.8,56.13813995]
[1753980153199,0.03,179.81,179.8,56.69431347]
[1753980153889,0.03,179.81,179.8,0.55617352]
[1753980154092,0.03,179.81,179.8,49.88640469]
[1753980156088,0.03,179.81,179.8,55.44813995]
[1753980156687,0.03,179.81,179.8,56.16813995]
[1753980157200,0.03,179.81,179.8,56.72431347]
[1753980157776,10.21640469,179.81,179.69,87.99999999]
[1753980158020,9.52640469,179.77,179.7,6.12131329]
[1753980158318,10.18640469,179.76,179.71,9.52640469]
[1753980158611,9.52640469,179.74,179.71,40.36]
[1753980158779,10.18640469,179.73,179.71,40.36]
[1753980158985,10.18640469,179.72,179.66,0.06]
[1753980159200,9.52640469,179.71,179.66,0.06]
[1753980159518,0.66,179.71,179.67,40.38]
[1753980159687,0.66,179.7,179.67,49.90640469]
[1753980160011,3.73391487,179.71,179.67,40.38]
[1753980160182,0.66,179.74,179.67,40.93657594]
[1753980160382,4.39374246,179.74,179.7,9.52640469]
[1753980160599,4.80784139,179.73,179.7,40.38]
[1753980160785,0.66,179.72,179.7,40.38]
[1753980160987,10.18640469,179.71,179.7,40.38]
[1753980161195,15.75113684,179.71,179.68,40.38]
[1753980161388,0.66,179.7,179.68,40.38]
[1753980161593,0.66,179.69,179.68,40.38]
[1753980161796,0.66,179.69,179.66,49.96640469]
[1753980161994,0.66,179.68,179.66,40.44]
[1753980163093,0.66,179.67,179.66,40.44]
[1753980163504,6.22575944,179.67,179.66,0.06]
[1753980163884,15.09216413,179.67,179.66,0.06]
[1753980164091,15.75216413,179.67,179.66,0.06]
[1753980164498,6.22575944,179.67,179.66,0.06]
[1753980164697,15.75216413,179.67,179.66,0.06]
[1753980165415,26.0,179.69,179.66,0.06]
[1753980165790,26.66,179.69,179.66,0.06]
[1753980166216,0.66,179.68,179.66,0.06]
[1753980167216,31.56515465,179.69,179.66,0.06]
[1753980167217,0.66,179.67,179.66,0.06]
[1753980168313,10.18640469,179.67,179.66,0.06]
[1753980168517,0.66,179.67,179.66,0.06]
[1753980168711,31.56515465,179.69,179.66,0.06]
[1753980169196,0.66,179.68,179.66,0.06]
[1753980170918,31.56517858,179.69,179.66,0.06]
[1753980171293,32.22517858,179.69,179.66,0.06]
[1753980171617,0.66,179.68,179.66,0.06]
[1753980172213,15.09158327,179.69,179.66,0.06]
[1753980172214,0.66,179.67,179.66,0.06]
[1753980172711,6.22575944,179.67,179.66,0.06]
[1753980172910,0.66,179.67,179.66,0.06]
[1753980173227,31.5651992,179.69,179.66,0.06]
[1753980173391,0.66,179.7,179.66,0.06]
[1753980173590,0.66,179.7,179.66,9.58640469]
[1753980173804,0.66,179.69,179.66,0.06]
[1753980174306,10.18640469,179.68,179.66,0.06]
[1753980174512,9.52640469,179.67,179.66,0.06]
[1753980174811,15.75216413,179.67,179.66,0.06]
[1753980175224,32.5368481,179.67,179.66,0.06]
[1753980175712,15.75216413,179.67,179.66,0.06]
[1753980178121,32.5368481,179.67,179.66,0.06]
[1753980178625,26.0,179.65,179.64,0.06]
[1753980178802,5.56575944,179.67,179.64,0.06]
[1753980179403,15.09194658,179.68,179.64,0.06]
[1753980179696,15.09163117,179.69,179.64,9.58640469]
[1753980180011,0.66,179.67,179.64,0.06]
[1753980180214,0.66,179.66,179.64,0.06]
[1753980180604,0.66,179.68,179.64,0.06]
[1753980180800,9.52640469,179.67,179.64,0.06]
[1753980181002,5.56637907,179.65,179.64,0.06]
[1753980181218,15.09278376,179.65,179.64,0.06]
[1753980181419,26.0,179.62,179.52,0.72]
[1753980181723,9.52640469,179.54,179.51,1e-08]
[1753980182131,10.18640469,179.54,179.51,1e-08]
[1753980182931,26.0,179.55,179.51,1e-08]
[1753980183102,9.52640469,179.57,179.51,9.5264047]
[1753980183303,9.52640469,179.56,179.51,9.5264047]
[1753980183504,10.18640469,179.56,179.51,9.5264047]
[1753980183706,9.52640469,179.55,179.51,1e-08]
[1753980184001,0.66,179.56,179.51,1e-08]
[1753980184224,10.18640469,179.56,179.51,1e-08]
[1753980184406,15.75585039,179.56,179.51,1e-08]
[1753980184731,10.18640469,179.56,179.51,9.5264047]
[1753980185225,10.18640469,179.56,179.51,1e-08]
[1753980185432,35.52640469,179.57,179.51,9.5264047]
[1753980185629,35.52640469,179.57,179.52,9.52640469]
[1753980185826,41.09536172,179.57,179.51,1e-08]
[1753980186131,31.56895703,179.57,179.52,9.52640469]
[1753980186310,31.56895703,179.57,179.51,1e-08]
[1753980186513,32.22895703,179.57,179.52,9.52640469]
[1753980186817,5.56831919,179.59,179.55,9.52640469]
[1753980187013,9.52640469,179.56,179.53,88.05999999]
[1753980187219,10.18640469,179.55,179.53,88.05999999]
[1753980187424,9.52640469,179.55,179.53,0.06]
[1753980187612,0.66,179.54,179.53,0.06]
[1753980188012,9.52640469,179.55,179.53,0.06]
[1753980188418,26.0,179.56,179.53,0.06]
[1753980188634,26.0,179.56,179.53,9.58640469]
[1753980188833,31.56921073,179.56,179.53,9.58640469]
[1753980189026,26.66,179.56,179.53,9.58640469]
[1753980189209,10.186405,179.6,179.55,9.52640469]
[1753980189409,0.66,179.63,179.59,9.52640469]
[1753980189632,5.5667673,179.64,179.61,9.52640469]
[1753980190039,6.2267673,179.64,179.61,9.52640469]
[1753980190239,0.66,179.64,179.61,9.52640469]
[1753980190412,6.2267654,179.64,179.61,9.52640469]
[1753980190612,5.5667654,179.64,179.61,9.52640469]
[1753980190807,0.66,179.63,179.55,0.55694792]
[1753980191014,10.18640469,179.63,179.58,9.52640469]
[1753980191312,0.66,179.63,179.59,9.52640469]
[1753980191713,0.66,179.62,179.59,9.52640469]
[1753980192035,6.22741602,179.62,179.59,9.52640469]
[1753980192338,0.66,179.61,179.59,9.52640469]
[1753980192535,9.52640469,179.6,179.55,9.52640469]
[1753980192738,9.52640469,179.61,179.56,9.52640469]
[1753980193035,0.66,179.59,179.56,9.52640469]
[1753980194011,6.22830844,179.59,179.56,9.52640469]
[1753980194424,6.22830844,179.59,179.54,128.37999999]
[1753980194620,6.22830844,179.59,179.55,9.52640469]
[1753980195542,6.22830844,179.59,179.56,9.52640469]
[1753980195719,5.56830844,179.59,179.56,9.52640469]
[1753980196215,0.66,179.59,179.55,9.52640469]
[1753980196846,9.52640469,179.57,179.54,128.37999999]
[1753980197025,0.66,179.56,179.54,87.99999999]
[1753980197235,10.18640469,179.57,179.53,0.06]
[1753980197817,10.18640469,179.56,179.53,0.06]
[1753980198250,5.56923429,179.56,179.53,0.06]
[1753980198444,36.18640469,179.58,179.53,9.58640469]
[1753980198757,0.66,179.57,179.53,9.58640469]
[1753980199113,6.22895855,179.57,179.53,9.58640469]
[1753980199420,0.66,179.56,179.53,0.06]
[1753980200017,0.66,179.56,179.53,9.58640469]
[1753980200247,15.75500619,179.58,179.53,0.06]
[1753980200554,15.75500619,179.58,179.53,9.58640469]
[1753980200728,0.66,179.57,179.53,0.06]
[1753980200937,0.66,179.57,179.53,9.58640469]
[1753980201158,5.5686015,179.58,179.54,9.52640469]
[1753980201648,0.66,179.57,179.54,9.52640469]
[1753980202355,6.22886276,179.57,179.54,9.52640469]
[1753980202842,6.22886276,179.57,179.53,97.58640468]
[1753980203644,6.22886276,179.57,179.53,88.05999999]
[1753980203948,6.22886276,179.57,179.53,97.58640468]
[1753980204147,15.09526745,179.57,179.53,88.05999999]
[1753980204334,4.38613266,179.56,179.53,88.05999999]
[1753980204728,13.25253735,179.56,179.53,88.05999999]
[1753980204936,0.66,179.55,179.53,88.05999999]
[1753980205651,5.56886276,179.57,179.54,9.52640469]
[1753980206061,5.56886276,179.57,179.53,88.77999999]
[1753980206230,9.29576414,179.57,179.53,98.30640468]
[1753980206435,9.95576414,179.57,179.53,97.58640468]
[1753980206627,5.56886276,179.57,179.53,98.30640468]
[1753980206849,16.735001,179.59,179.56,9.52640469]
[1753980207058,4.64204169,179.62,179.56,9.52640469]
[1753980207059,16.78468397,179.62,179.58,9.52640469]
[1753980207235,26.0,179.59,179.58,9.52640469]
[1753980207571,26.0,179.59,179.56,128.27999999]
[1753980207753,26.0,179.59,179.57,9.52640469]
[1753980208245,5.56885894,179.57,179.56,87.99999999]
[1753980208449,10.18640469,179.58,179.55,40.28]
[1753980208450,6.22865693,179.58,179.55,40.28]
[1753980208852,10.18640469,179.57,179.55,40.28]
[1753980209150,10.18640469,179.56,179.53,88.05999999]
[1753980209454,10.18640469,179.56,179.53,128.33999999]
[1753980209655,9.52640469,179.55,179.53,40.34]
[1753980209835,9.52640469,179.55,179.53,0.06]
[1753980210035,10.18640469,179.54,179.53,0.06]
[1753980210257,6.22978946,179.54,179.53,0.06]
[1753980210552,5.56978946,179.54,179.53,0.06]
[1753980211152,31.56956328,179.55,179.53,0.06]
[1753980211852,9.526404,179.56,179.54,50.52640469]
[1753980212150,26.0,179.58,179.55,10.80335261]
[1753980212456,5.56796224,179.6,179.56,0.72]
[1753980212643,9.29851261,179.6,179.57,40.28]
[1753980212841,16.732201,179.63,179.58,0.72]
[1753980213037,0.69,179.64,179.6,9.52640469]
[1753980213038,0.03,179.64,179.6,9.52640469]
[1753980213230,20.54447808,179.64,179.6,9.52640469]
[1753980213431,0.66,179.63,179.6,9.52640469]
[1753980213761,16.81468397,179.64,179.6,49.80640469]
[1753980213941,5.56699883,179.63,179.6,49.80640469]
[1753980214137,9.29759857,179.63,179.6,49.80640469]
[1753980214466,0.69,179.62,179.6,40.28]
[1753980214630,0.69,179.62,179.59,9.52640469]
[1753980214832,10.21640469,179.61,179.58,40.28]
[1753980215033,4.42239194,179.6,179.56,49.80640469]
[1753980215245,3.73239194,179.6,179.56,49.80640469]
[1753980215427,0.69,179.59,179.56,49.80640469]
[1753980215740,0.69,179.59,179.56,40.28]
[1753980215950,5.56854883,179.58,179.56,49.80640469]
[1753980216633,5.56854883,179.58,179.53,0.06]
[1753980216634,10.21640469,179.57,179.53,0.06]
[1753980216831,10.21640469,179.57,179.53,40.34]
[1753980217258,0.69,179.57,179.53,49.86640469]
[1753980217654,10.21640469,179.56,179.53,40.34]
[1753980217962,5.56978946,179.54,179.53,40.34]
[1753980218129,5.56978946,179.54,179.53,0.06]
[1753980219355,6.25978946,179.54,179.53,0.06]
[1753980219562,15.78619415,179.54,179.53,0.06]
[1753980219734,19.52702092,179.54,179.53,0.06]
[1753980220135,10.00061623,179.54,179.53,0.06]
[1753980220864,9.31061623,179.54,179.53,0.06]
[1753980221033,31.56954809,179.55,179.53,0.06]
[1753980221234,3.7430571,179.54,179.53,0.06]
[1753980221653,5.56917498,179.56,179.53,9.58640469]
[1753980221850,6.25917498,179.56,179.53,0.06]
[1753980222265,5.56917498,179.56,179.53,9.58640469]
[1753980223058,9.31314487,179.57,179.53,10.25640469]
[1753980223240,9.31314487,179.57,179.54,10.19640469]
[1753980223438,29.74417673,179.57,179.56,9.52640469]
[1753980223665,5.56833803,179.59,179.56,9.52640469]
[1753980224159,9.31340556,179.59,179.55,9.52640469]
[1753980224364,3.74506753,179.59,179.56,10.19640469]
[1753980224565,3.74506753,179.6,179.58,9.52640469]
[1753980224747,3.74506753,179.6,179.59,9.52640469]
[1753980225063,3.74506753,179.62,179.59,9.52640469]
[1753980225366,4.16268809,179.61,179.59,9.52640469]
[1753980225661,56.74615619,179.6,179.54,40.28]
[1753980225860,9.52640469,179.58,179.54,40.28]
[1753980226155,8.59775562,179.59,179.54,40.28]
[1753980226156,4.43506753,179.57,179.54,40.28]
[1753980226364,6.25913197,179.57,179.54,40.28]
[1753980226865,5.56913197,179.57,179.54,49.80640469]
[1753980227373,5.56913197,179.57,179.54,40.28]
[1753980227878,5.56913197,179.57,179.55,9.52640469]
[1753980228077,3.74883525,179.58,179.56,9.52640469]
[1753980228242,5.56851981,179.59,179.57,9.52640469]
[1753980228243,9.31735506,179.59,179.57,9.52640469]
[1753980228864,9.31735506,179.59,179.55,0.67]
[1753980229170,9.31735506,179.59,179.56,9.52640469]
[1753980229343,8.60398115,179.58,179.54,40.28]
[1753980229545,4.8551459,179.57,179.54,40.28]
[1753980229743,4.43883525,179.57,179.54,40.28]
[1753980230475,5.56916907,179.56,179.54,40.28]
[1753980230681,9.31800432,179.56,179.54,40.28]
[1753980231048,9.31800432,179.56,179.54,49.80640469]
[1753980231441,9.31800432,179.56,179.54,9.52640469]
[1753980231645,9.31800432,179.56,179.53,49.86640469]
[1753980232940,9.31800432,179.56,179.53,40.34]
[1753980233142,26.0,179.54,179.53,40.34]
[1753980233344,30.43993806,179.54,179.53,0.06]
[1753980233548,29.74993806,179.54,179.53,0.06]
[1753980233975,26.0,179.54,179.53,0.06]
[1753980234174,29.74981115,179.54,179.53,0.06]
[1753980234548,36.00960061,179.54,179.53,0.06]
[1753980236279,66.4873972,179.54,179.53,0.06]
[1753980236995,68.57107242,179.54,179.53,0.06]
[1753980237558,68.57107242,179.54,179.52,0.06]
[1753980237759,20.21659899,179.53,179.52,0.06]
[1753980238161,16.78468397,179.52,179.51,1e-08]
[1753980238366,86.80768765,179.52,179.51,1e-08]
[1753980238567,77.28128296,179.52,179.51,1e-08]
[1753980238809,82.85169294,179.52,179.51,1e-08]
[1753980240259,85.08439594,179.52,179.51,1e-08]
[1753980240900,34.58799125,179.52,179.51,1e-08]
[1753980241102,58.50431603,179.52,179.51,1e-08]
[1753980241569,56.27161303,179.52,179.51,1e-08]
[1753980241965,66.48801772,179.52,179.51,1e-08]
[1753980242691,33.91651908,179.52,179.51,1e-08]
[1753980242990,26.0,179.52,179.51,1e-08]
[1753980243170,52.79038905,179.52,179.51,1e-08]
[1753980243487,46.52997907,179.52,179.51,1e-08]
[1753980243688,52.10038905,179.52,179.51,1e-08]
[1753980243873,56.26172284,179.52,179.51,1e-08]
[1753980244073,56.26168697,179.52,179.51,1e-08]
[1753980244273,52.10038905,179.52,179.51,1e-08]
[1753980244475,56.26114086,179.52,179.51,1e-08]
[1753980244673,52.10038905,179.52,179.51,1e-08]
[1753980244976,56.98116677,179.52,179.51,1e-08]
[1753980245980,40.50757146,179.52,179.51,1e-08]
[1753980246180,80.80757146,179.52,179.51,1e-08]
[1753980246975,83.03990046,179.52,179.51,1e-08]
[1753980248773,92.56630515,179.52,179.49,0.2]
[1753980248973,52.31108866,179.49,179.48,0.2]
[1753980249174,100.51490548,179.49,179.48,0.2]
[1753980249385,106.8062465,179.49,179.48,0.2]
[1753980249876,113.04269615,179.49,179.46,0.06]
[1753980250208,26.31108866,179.47,179.46,0.06]
[1753980250381,74.51490548,179.47,179.46,0.06]
[1753980250976,29.7452951,179.47,179.46,0.06]
[1753980251300,26.0,179.47,179.46,0.06]
[1753980251674,31.57196188,179.47,179.46,0.06]
[1753980251871,16.78468397,179.51,179.46,10.25640469]
[1753980252075,26.0,179.49,179.48,9.52640469]
[1753980252276,5.57101763,179.51,179.48,10.19640469]
[1753980252504,5.57101763,179.51,179.49,9.52640469]
[1753980252698,7.8028481,179.52,179.49,9.52640469]
[1753980252900,26.0,179.5,179.48,0.67]
[1753980253103,26.0,179.5,179.48,10.19640469]
[1753980253393,26.0,179.5,179.46,9.58640469]
[1753980253592,5.57134102,179.49,179.46,9.58640469]
[1753980254278,15.81774571,179.49,179.46,0.06]
[1753980254479,6.29134102,179.49,179.46,0.06]
[1753980254688,5.57134102,179.49,179.46,0.06]
[1753980255005,5.57134102,179.49,179.46,0.73]
[1753980255202,5.57134102,179.49,179.46,0.06]
[1753980255798,6.29134102,179.49,179.46,0.06]
[1753980257613,10.24640469,179.48,179.46,0.06]
[1753980257984,16.78468397,179.48,179.46,0.06]
[1753980258879,9.526404,179.5,179.47,9.52640469]
[1753980259099,31.57075328,179.51,179.49,9.52640469]
[1753980259288,31.57075328,179.51,179.48,10.19640469]
[1753980259804,5.57075328,179.51,179.48,10.19640469]
[1753980260120,26.0,179.5,179.48,10.19640469]
[1753980260608,26.0,179.5,179.48,9.52640469]
[1753980260792,26.0,179.5,179.46,0.73]
[1753980260993,26.0,179.5,179.48,9.52640469]
[1753980261816,31.57116596,179.5,179.48,9.52640469]
[1753980262022,26.0,179.5,179.48,9.52640469]
[1753980262186,26.0,179.5,179.49,9.52640469]
[1753980262715,26.0,179.5,179.48,10.19640469]
[1753980263208,26.0,179.5,179.48,9.52640469]
[1753980263414,26.0,179.5,179.46,0.06]
[1753980263614,0.03,179.54,179.49,10.19640469]
[1753980263786,16.81468397,179.54,179.5,0.67]
[1753980263987,16.81468397,179.54,179.51,9.52640469]
[1753980265101,16.81468397,179.54,179.5,0.67]
[1753980265316,17.53468397,179.54,179.49,88.0]
[1753980265502,3.74025215,179.53,179.5,9.52640469]
[1753980265702,23.10473692,179.54,179.51,9.52640469]
[1753980265998,3.74025088,179.53,179.49,88.0]
[1753980266199,4.46025088,179.53,179.49,97.52640469]
[1753980266414,0.72,179.52,179.49,97.52640469]
[1753980266713,36.24640469,179.51,179.49,88.0]
[1753980266921,36.24640469,179.51,179.46,0.06]
[1753980266922,53.03108866,179.5,179.46,0.06]
[1753980267090,52.31108866,179.47,179.46,0.06]
[1753980267296,96.33251667,179.47,179.46,0.06]
[1753980267489,97.05251667,179.47,179.46,0.06]
[1753980267699,102.62447855,179.47,179.46,0.06]
[1753980267915,111.35323785,179.47,179.46,0.06]
[1753980268300,101.82683316,179.47,179.46,0.06]
[1753980268504,111.35276363,179.47,179.46,0.06]
[1753980268720,106.78127867,179.47,179.46,0.06]
[1753980269030,96.53487398,179.47,179.46,0.06]
[1753980269205,56.25487398,179.47,179.46,0.06]
[1753980269597,26.0,179.47,179.46,0.06]
[1753980269899,9.526405,179.48,179.46,10.25640469]
[1753980270101,9.526405,179.48,179.47,9.52640469]
[1753980270940,15.09805643,179.48,179.46,0.06]
[1753980271094,5.57165143,179.48,179.46,0.06]
[1753980271299,9.31360947,179.49,179.46,9.58640469]
[1753980272099,5.57143589,179.49,179.46,9.58640469]
[1753980272298,9.3149863,179.49,179.46,9.58640469]
[1753980272827,5.57143589,179.49,179.47,9.52640469]
[1753980273019,48.35581834,179.5,179.47,9.52640469]
[1753980273325,3.74468218,179.49,179.46,0.73]
[1753980273996,42.78468397,179.5,179.48,9.52640469]
[1753980274502,26.0,179.5,179.48,9.52640469]
[1753980274707,26.0,179.5,179.49,9.52640469]
[1753980275206,29.74697618,179.5,179.49,9.52640469]
[1753980276231,16.78468397,179.52,179.49,9.52640469]
[1753980276427,3.74813234,179.51,179.49,9.52640469]
[1753980276945,4.43813234,179.51,179.49,9.52640469]
[1753980277933,5.57103064,179.5,179.49,9.52640469]
[1753980278240,9.31916298,179.5,179.49,9.52640469]
[1753980278750,14.17671266,179.5,179.47,97.52640469]
[1753980278959,14.17671266,179.5,179.47,88.0]
[1753980278960,26.0,179.48,179.47,88.0]
[1753980279120,47.22570693,179.48,179.47,88.0]
[1753980279450,51.39472347,179.48,179.47,88.0]
[1753980279743,51.39472347,179.48,179.46,0.06]
[1753980279932,25.3948906,179.47,179.46,0.06]
[1753980280128,30.96685248,179.47,179.46,0.06]
[1753980280646,30.27685248,179.47,179.46,0.06]
[1753980280838,3.75102296,179.47,179.46,0.06]
[1753980281038,7.92106217,179.47,179.46,0.06]
[1753980281340,13.49302405,179.47,179.46,0.06]
[1753980281644,30.96770802,179.47,179.46,0.06]
[1753980282328,40.49411271,179.47,179.46,0.06]
[1753980282619,84.94496289,179.47,179.46,0.06]
[1753980283450,34.4485582,179.47,179.46,0.06]
[1753980283651,56.27770802,179.47,179.46,0.06]
[1753980284027,56.96770802,179.47,179.46,0.06]
[1753980284232,70.66441608,179.47,179.46,0.06]
[1753980284439,61.13801139,179.47,179.46,0.06]
[1753980284652,60.23215114,179.47,179.46,0.06]
[1753980284826,50.70574614,179.47,179.46,0.06]
[1753980285244,33.92106217,179.47,179.46,0.06]
[1753980286018,3.75102296,179.47,179.46,10.30640469]
[1753980286223,29.75102296,179.49,179.46,10.30640469]
[1753980286470,7.92048156,179.48,179.46,0.78]
[1753980286630,3.75102296,179.48,179.46,0.06]
[1753980286836,0.03,179.52,179.47,0.72]
[1753980287073,26.0,179.5,179.48,0.72]
[1753980287257,0.03,179.49,179.48,0.72]
[1753980287553,0.03,179.49,179.48,15.09805612]
[1753980287849,0.03,179.49,179.48,9.52640469]
[1753980288023,0.03,179.49,179.46,88.06]
[1753980288216,0.03,179.49,179.47,9.52640469]
[1753980288442,0.03,179.49,179.48,9.52640469]
[1753980288836,0.03,179.49,179.46,88.78]
[1753980289148,0.03,179.49,179.48,9.52640469]
[1753980294052,0.72,179.49,179.46,0.06]
[1753980294247,0.69,179.48,179.46,0.06]
[1753980294630,0.69,179.47,179.46,0.06]
[1753980295027,4.4428584,179.47,179.46,0.06]
[1753980295227,8.61205242,179.47,179.46,0.06]
[1753980295632,14.1840143,179.47,179.46,0.06]
[1753980296037,10.01482028,179.47,179.46,0.06]
[1753980296654,14.18484088,179.47,179.46,0.06]
[1753980297074,30.96972658,179.47,179.46,0.06]
[1753980297737,66.49613127,179.47,179.46,0.06]
[1753980297939,70.6662951,179.47,179.46,0.06]
[1753980298738,61.13989041,179.47,179.46,0.06]
[1753980298936,30.27972658,179.47,179.46,9.58640469]
[1753980299165,7.92308073,179.47,179.46,9.58640469]
[1753980299354,7.92308073,179.47,179.46,10.30640469]
[1753980299566,3.7528584,179.47,179.46,10.30640469]
[1753980299745,3.7828584,179.49,179.46,10.30640469]
[1753980300062,4.16918154,179.48,179.46,0.78]
[1753980300239,4.16918154,179.48,179.46,40.32]
[1753980300440,3.7528584,179.48,179.47,0.72]
[1753980300660,0.03,179.49,179.47,0.72]
[1753980300863,0.03,179.49,179.48,0.72]
[1753980301071,0.03,179.49,179.48,98.80356983]
[1753980301271,0.03,179.52,179.48,134.32997452]
[1753980301475,0.03,179.52,179.51,19.05280938]
[1753980301655,0.03,179.52,179.51,97.52640469]
[1753980301857,0.03,179.52,179.51,98.80347671]
[1753980302164,10.264293,179.52,179.51,98.80347671]
[1753980302548,0.03,179.52,179.51,108.3298814]
[1753980302941,0.03,179.52,179.51,113.90060169]
[1753980303143,0.03,179.54,179.51,139.34352967]
[1753980303456,3.74650801,179.61,179.53,9.52640469]
[1753980303662,0.03,179.64,179.6,9.52640469]
[1753980303971,0.03,179.64,179.63,9.52640469]
[1753980304265,13.50418479,179.64,179.63,49.76640469]
[1753980304583,9.75767678,179.64,179.63,40.24]
[1753980304752,4.19098785,179.64,179.63,49.76640469]
[1753980305270,0.03,179.64,179.63,49.76640469]
[1753980305452,5.59668893,179.64,179.63,9.52640469]
[1753980305859,5.59668893,179.64,179.62,40.24]
[1753980306060,6.29668893,179.64,179.62,49.76640469]
[1753980306259,6.29668893,179.64,179.63,9.52640469]
[1753980306785,6.29668893,179.64,179.62,9.52640469]
[1753980307479,0.7,179.63,179.6,9.52640469]
[1753980307773,16.78468397,179.62,179.58,49.76640469]
[1753980307981,17.48468397,179.62,179.58,49.76640469]
[1753980308354,0.7,179.61,179.58,49.76640469]
[1753980308991,5.56792873,179.6,179.58,40.24]
[1753980309279,27.01108866,179.59,179.53,9.52640469]
[1753980309455,26.31108866,179.55,179.5,9.52640469]
[1753980309656,10.22640469,179.54,179.5,40.22]
[1753980310080,0.7,179.53,179.5,40.22]
[1753980310281,0.7,179.53,179.51,0.06]
[1753980310481,42.78468397,179.55,179.51,9.58640469]
[1753980310482,43.48468397,179.55,179.51,9.58640469]
[1753980310852,53.01108866,179.55,179.51,0.06]
[1753980311074,0.7,179.54,179.51,0.06]
[1753980311367,5.56998752,179.54,179.51,9.58640469]
[1753980311570,16.78468397,179.55,179.52,9.52640469]
[1753980311962,5.56943321,179.56,179.53,10.21640469]
[1753980312164,6.26943321,179.56,179.52,9.52640469]
[1753980313076,5.56943321,179.56,179.52,9.52640469]
[1753980313259,0.7,179.55,179.52,9.52640469]
[1753980313662,0.7,179.55,179.51,9.58640469]
[1753980313876,15.0958379,179.56,179.51,9.58640469]
[1753980314090,0.7,179.54,179.51,9.58640469]
[1753980314380,0.7,179.53,179.51,0.06]
[1753980314580,10.22640469,179.53,179.51,0.06]
[1753980314762,9.52640469,179.53,179.51,0.06]
[1753980314967,0.7,179.52,179.51,0.06]
[1753980315166,6.27040998,179.52,179.51,0.06]
[1753980315569,32.58149864,179.52,179.51,0.06]
[1753980315775,17.48468397,179.52,179.51,0.06]
[1753980316576,23.05509395,179.52,179.51,0.06]
[1753980316771,17.48468397,179.52,179.51,0.06]
[1753980317266,23.05509395,179.52,179.51,0.06]
[1753980317474,32.58149864,179.52,179.51,0.06]
[1753980318283,36.31164505,179.52,179.51,0.06]
[1753980319575,26.78524036,179.52,179.51,0.06]